bitfinex-derivatives/quotes_BTCF0:USTF0_20260315
["timestamp","ask_amount","ask_price","bid_price","bid_amount"]
[1773572076931,0.041745,71854.0,71843.0,0.0014]
[1773572077230,0.041745,71854.0,71842.0,0.041751]
[1773572077431,0.041745,71854.0,71843.0,0.0014]
[1773572077732,0.041745,71854.0,71842.0,0.041751]
[1773572077931,0.041745,71854.0,71844.0,0.0014]
[1773572078332,0.041745,71854.0,71845.0,0.0014]
[1773572078732,0.041745,71854.0,71842.0,0.041751]
[1773572078924,0.041745,71854.0,71843.0,0.0014]
[1773572079126,0.041745,71854.0,71842.0,0.041751]
[1773572079336,0.041745,71854.0,71843.0,0.0014]
[1773572079835,0.041745,71854.0,71844.0,0.0014]
[1773572080233,0.041745,71854.0,71845.0,0.0014]
[1773572080634,0.041745,71854.0,71842.0,0.041751]
[1773572080836,0.041745,71854.0,71843.0,0.0014]
[1773572081136,0.041745,71854.0,71842.0,0.041751]
[1773572081433,0.041745,71854.0,71843.0,0.0014]
[1773572081636,0.041745,71854.0,71842.0,0.041751]
[1773572081838,0.041745,71854.0,71843.0,0.0014]
[1773572082232,0.041745,71854.0,71844.0,0.0014]
[1773572082640,0.041745,71854.0,71842.0,0.041751]
[1773572082833,0.041745,71854.0,71843.0,0.0014]
[1773572083228,0.041745,71853.0,71842.0,0.041751]
[1773572083431,0.041745,71853.0,71844.0,0.0014]
[1773572083627,0.041745,71853.0,71845.0,0.0014]
[1773572084036,0.041745,71853.0,71840.0,0.041752]
[1773572084238,0.041745,71853.0,71841.0,0.0014]
[1773572084537,0.041745,71853.0,71840.0,0.041752]
[1773572084836,0.041745,71853.0,71841.0,0.0014]
[1773572085041,0.041745,71853.0,71840.0,0.041752]
[1773572085230,0.041745,71853.0,71842.0,0.0014]
[1773572085430,0.041745,71853.0,71843.0,0.0014]
[1773572085833,0.041745,71853.0,71841.0,0.001]
[1773572086032,0.041745,71853.0,71842.0,0.0014]
[1773572086543,0.041745,71853.0,71841.0,0.001]
[1773572086732,0.041745,71853.0,71842.0,0.0014]
[1773572087133,0.041745,71853.0,71843.0,0.0014]
[1773572087534,0.041745,71853.0,71840.0,0.041752]
[1773572087733,0.041745,71853.0,71841.0,0.0014]
[1773572088132,0.041745,71853.0,71840.0,0.041752]
[1773572088333,0.041745,71853.0,71842.0,0.0014]
[1773572088744,0.041745,71853.0,71843.0,0.0014]
[1773572089039,0.01501302,71852.0,71834.0,0.01098]
[1773572089234,0.04175,71846.0,71835.0,0.0014]
[1773572089433,0.01501302,71852.0,71835.0,0.0014]
[1773572089434,0.04175,71845.0,71835.0,0.0014]
[1773572089634,0.01501302,71852.0,71835.0,0.0014]
[1773572090233,0.041745,71853.0,71835.0,0.0182833]
[1773572090541,0.01097,71855.0,71846.0,0.0168833]
[1773572090742,0.01097,71855.0,71848.0,0.0168833]
[1773572091742,0.041742,71858.0,71848.0,0.0168833]
[1773572092945,0.01097,71855.0,71848.0,0.0168833]
[1773572096148,0.041743,71857.0,71848.0,0.0168833]
[1773572096344,0.041743,71858.0,71848.0,0.0168833]
[1773572096940,0.041743,71857.0,71848.0,0.0168833]
[1773572097540,0.041743,71857.0,71849.0,0.0014]
[1773572097746,0.041742,71860.0,71849.0,0.0014]
[1773572098050,0.041742,71860.0,71848.0,0.0168833]
[1773572098258,0.041743,71857.0,71849.0,0.0014]
[1773572098648,0.041743,71857.0,71852.0,0.01097]
[1773572098848,0.041742,71858.0,71852.0,0.01097]
[1773572099147,0.041742,71858.0,71853.0,0.0014]
[1773572099346,0.01097,71854.0,71853.0,0.0014]
[1773572099650,0.01097,71854.0,71852.0,0.01097]
[1773572099842,0.01097,71854.0,71853.0,0.0014]
[1773572100041,0.01097,71854.0,71852.0,0.01097]
[1773572100242,0.01097,71854.0,71853.0,0.0014]
[1773572100439,0.01097,71854.0,71853.0,0.00101024]
[1773572100654,0.041743,71857.0,71853.0,0.0014]
[1773572102756,0.052713,71857.0,71853.0,0.0014]
[1773572103253,0.041747,71850.0,71840.0,0.01098]
[1773572103549,0.01097,71857.0,71841.0,0.0014]
[1773572103550,0.041747,71851.0,71841.0,0.0014]
[1773572103751,0.00949111,71856.0,71841.0,0.0014]
[1773572103949,0.041748,71849.0,71842.0,0.0014]
[1773572104454,0.041748,71849.0,71843.0,0.0014]
[1773572105247,0.041748,71849.0,71844.0,0.0014]
[1773572105757,0.041748,71849.0,71845.0,0.0014]
[1773572106052,0.00949111,71856.0,71846.0,0.0014]
[1773572106248,0.041747,71850.0,71838.0,0.01516129]
[1773572106552,0.041747,71850.0,71839.0,0.0014]
[1773572106760,0.041747,71850.0,71840.0,0.0014]
[1773572107052,0.02046111,71856.0,71838.0,0.01516129]
[1773572107243,0.02046111,71856.0,71839.0,0.0014]
[1773572107650,0.02046111,71856.0,71840.0,0.0014]
[1773572107850,0.02046111,71856.0,71841.0,0.0014]
[1773572108353,0.02046111,71856.0,71842.0,0.0014]
[1773572108851,0.02046111,71856.0,71838.0,0.01516129]
[1773572108852,0.02046111,71856.0,71843.0,0.0014]
[1773572109041,0.041747,71851.0,71843.0,0.0014]
[1773572109245,0.041747,71851.0,71838.0,0.05691429]
[1773572109448,0.041747,71851.0,71839.0,0.0014]
[1773572109753,0.041747,71851.0,71838.0,0.05691429]
[1773572109954,0.041747,71851.0,71839.0,0.0014]
[1773572110347,0.041747,71851.0,71840.0,0.0014]
[1773572110749,0.041747,71851.0,71838.0,0.05691429]
[1773572111049,0.041747,71851.0,71839.0,0.0014]
[1773572111251,0.041747,71851.0,71838.0,0.05691429]
[1773572111451,0.041747,71851.0,71839.0,0.0014]
[1773572111761,0.041747,71851.0,71838.0,0.05691429]
[1773572111956,0.041747,71851.0,71840.0,0.0014]
[1773572112353,0.041747,71851.0,71841.0,0.0014]
[1773572112758,0.041747,71851.0,71839.0,0.041753]
[1773572112959,0.041747,71850.0,71840.0,0.0014]
[1773572113260,0.041747,71850.0,71839.0,0.041753]
[1773572113559,0.041747,71850.0,71840.0,0.0024]
[1773572113754,0.041747,71850.0,71840.0,0.001]
[1773572113954,0.041747,71850.0,71841.0,0.0014]
[1773572114254,0.041747,71850.0,71840.0,0.001]
[1773572114458,0.041747,71850.0,71841.0,0.0014]
[1773572114662,0.02046111,71856.0,71841.0,0.0014]
[1773572114849,0.02046111,71856.0,71839.0,0.001]
[1773572115159,0.02046111,71856.0,71840.0,0.0014]
[1773572115160,0.01097,71856.0,71840.0,0.0014]
[1773572115362,0.00809935,71855.0,71836.0,0.041755]
[1773572115562,0.00809935,71855.0,71837.0,0.0014]
[1773572115762,0.041749,71848.0,71837.0,0.0014]
[1773572115954,0.041749,71848.0,71838.0,0.0014]
[1773572116365,0.041749,71848.0,71836.0,0.041755]
[1773572116560,0.041749,71848.0,71837.0,0.0014]
[1773572116966,0.041749,71848.0,71838.0,0.0014]
[1773572117352,0.041749,71848.0,71838.0,0.001]
[1773572117559,0.041749,71848.0,71839.0,0.0014]
[1773572118063,0.041749,71848.0,71840.0,0.0014]
[1773572118361,0.041749,71847.0,71838.0,0.001]
[1773572118556,0.041749,71847.0,71839.0,0.0014]
[1773572118958,0.041749,71847.0,71840.0,0.0014]
[1773572119362,0.041749,71847.0,71836.0,0.01516463]
[1773572119562,0.041749,71847.0,71838.0,0.001]
[1773572119862,0.041749,71847.0,71839.0,0.0014]
[1773572120168,0.041749,71847.0,71838.0,0.001]
[1773572120362,0.041749,71847.0,71839.0,0.0014]
[1773572120960,0.041749,71847.0,71840.0,0.0014]
[1773572121460,0.04175,71846.0,71841.0,0.0014]
[1773572121660,0.00809935,71855.0,71830.0,0.01098]
[1773572121661,0.00809935,71855.0,71831.0,0.01596016]
[1773572121854,0.00730733,71852.0,71832.0,0.0014]
[1773572122458,0.041752,71841.0,71832.0,0.0014]
[1773572127764,0.041752,71841.0,71828.0,0.041759]
[1773572127968,0.041753,71840.0,71829.0,0.0014]
[1773572130170,0.041753,71840.0,71829.0,0.01736016]
[1773572132766,0.041752,71842.0,71829.0,0.05911916]
[1773572138075,0.041752,71842.0,71830.0,0.041758]
[1773572139075,0.01097,71856.0,71830.0,0.01596016]
[1773572139076,0.041751,71844.0,71830.0,0.01596016]
[1773572139977,0.041751,71844.0,71831.0,0.041758]
[1773572140176,0.041751,71844.0,71832.0,0.01596016]
[1773572142280,0.041751,71844.0,71832.0,0.05771716]
[1773572142477,0.041751,71844.0,71832.0,0.041757]
[1773572142685,0.041751,71844.0,71833.0,0.01596016]
[1773572146479,0.041751,71843.0,71833.0,0.01596016]
[1773572147979,0.041752,71842.0,71833.0,0.01596016]
[1773572148187,0.041752,71841.0,71830.0,0.041758]
[1773572148486,0.041752,71841.0,71831.0,0.0014]
[1773572149770,0.041752,71841.0,71831.0,0.001]
[1773572149986,0.041752,71841.0,71832.0,0.0014]
[1773572150378,0.041752,71841.0,71833.0,0.0014]
[1773572152281,0.041752,71841.0,71830.0,0.041758]
[1773572152587,0.041752,71841.0,71831.0,0.0014]
[1773572152779,0.041752,71841.0,71832.0,0.0014]
[1773572153182,0.041752,71841.0,71833.0,0.001]
[1773572153784,0.041752,71841.0,71832.0,0.0014]
[1773572155086,0.0049802,71847.0,71832.0,0.0014]
[1773572155287,0.041752,71842.0,71833.0,0.0014]
[1773572157388,0.041752,71842.0,71834.0,0.0014]
[1773572158479,0.041752,71842.0,71834.0,0.0024]
[1773572160191,0.041752,71842.0,71835.0,0.0014]
[1773572161786,0.041752,71842.0,71835.0,0.0024]
[1773572163291,0.041752,71842.0,71836.0,0.0014]
[1773572163990,0.00315775,71853.0,71836.0,0.0014]
[1773572164186,0.041751,71844.0,71837.0,0.0014]
[1773572164588,0.041751,71843.0,71837.0,0.0014]
[1773572173197,0.04175,71845.0,71837.0,0.0014]
[1773572179586,0.041749,71847.0,71837.0,0.0014]
[1773572179786,0.04175,71846.0,71837.0,0.0014]
[1773572184801,0.04175,71845.0,71837.0,0.0014]
[1773572190702,0.041751,71844.0,71837.0,0.0014]
[1773572191704,0.041752,71841.0,71837.0,0.0014]
[1773572192204,0.041753,71841.0,71838.0,0.0014]
[1773572192396,0.041753,71841.0,71839.0,0.0014]
[1773572192595,0.041753,71841.0,71830.0,0.041758]
[1773572192801,0.041753,71841.0,71831.0,0.0014]
[1773572193001,0.041753,71841.0,71837.0,0.001]
[1773572193298,0.041753,71841.0,71838.0,0.0014]
[1773572195706,0.041753,71841.0,71839.0,0.0014]
[1773572195910,0.041753,71841.0,71840.0,0.0014]
[1773572202118,0.041753,71841.0,71830.0,0.041758]
[1773572202308,0.041753,71841.0,71831.0,0.0014]
[1773572205620,0.01097,71856.0,71831.0,0.0014]
[1773572205811,0.00372646,71855.0,71833.0,0.041757]
[1773572207017,0.04175,71845.0,71833.0,0.041757]
[1773572207717,0.00353849,71851.0,71831.0,0.043158]
[1773572207919,0.01097,71856.0,71831.0,0.043158]
[1773572208121,0.00353849,71850.0,71831.0,0.043158]
[1773572209012,0.041751,71843.0,71831.0,0.043158]
[1773572209214,0.041751,71843.0,71832.0,0.0014]
[1773572210922,0.00382265,71846.0,71829.0,0.041759]
[1773572211118,0.041755,71837.0,71830.0,0.0014]
[1773572211429,0.041754,71839.0,71831.0,0.0014]
[1773572211626,0.041754,71839.0,71832.0,0.0014]
[1773572211827,0.041754,71839.0,71833.0,0.0014]
[1773572212029,0.041754,71838.0,71834.0,0.0014]
[1773572214827,0.041754,71838.0,71835.0,0.0014]
[1773572215135,0.041754,71838.0,71836.0,0.0014]
[1773572215330,0.041754,71838.0,71826.0,0.041761]
[1773572215532,0.041754,71838.0,71833.0,0.0013999]
[1773572215720,0.041754,71838.0,71834.0,0.0014]
[1773572216337,0.041754,71838.0,71833.0,0.0013999]
[1773572216529,0.041755,71836.0,71834.0,0.0014]
[1773572216835,0.041754,71838.0,71835.0,0.0014]
[1773572217033,0.041754,71838.0,71836.0,0.0014]
[1773572217228,0.041754,71838.0,71837.0,0.0014]
[1773572218928,0.041754,71838.0,71825.0,0.041761]
[1773572219128,0.041754,71838.0,71833.0,0.0013999]
[1773572219333,0.041754,71838.0,71834.0,0.0014]
[1773572220222,0.041754,71838.0,71835.0,0.0014]
[1773572220423,0.041754,71838.0,71836.0,0.0014]
[1773572220728,0.041754,71838.0,71837.0,0.0014]
[1773572221332,0.041754,71838.0,71825.0,0.041761]
[1773572221531,0.041756,71835.0,71826.0,0.0014]
[1773572221734,0.041755,71837.0,71824.0,0.041762]
[1773572221923,0.041755,71837.0,71827.0,0.0014]
[1773572222127,0.041755,71837.0,71824.0,0.05684043]
[1773572222327,0.041755,71837.0,71825.0,0.0014]
[1773572223336,0.041755,71837.0,71826.0,0.0014]
[1773572224142,0.041755,71837.0,71824.0,0.05684043]
[1773572224439,0.041756,71836.0,71827.0,0.0014]
[1773572224639,0.041756,71835.0,71824.0,0.05684043]
[1773572224939,0.041756,71835.0,71828.0,0.0014]
[1773572225140,0.041756,71835.0,71824.0,0.05684043]
[1773572225339,0.041756,71835.0,71829.0,0.0014]
[1773572225742,0.00355998,71841.0,71830.0,0.0014]
[1773572226038,0.041758,71832.0,71831.0,0.0014]
[1773572229440,0.041757,71834.0,71831.0,0.0014]
[1773572229741,0.041757,71833.0,71832.0,0.0014]
[1773572230134,0.041757,71833.0,71821.0,0.052744]
[1773572230336,0.041757,71833.0,71822.0,0.0014]
[1773572230642,0.041757,71833.0,71821.0,0.052744]
[1773572230935,0.041757,71833.0,71822.0,0.0014]
[1773572231139,0.00355998,71838.0,71821.0,0.01098]
[1773572231335,0.00355998,71838.0,71822.0,0.0014]
[1773572231737,0.00355998,71838.0,71823.0,0.0014]
[1773572231943,0.041757,71833.0,71823.0,0.0014]
[1773572232136,0.041757,71833.0,71821.0,0.01098]
[1773572232343,0.01421814,71851.0,71828.0,0.01422499]
[1773572232642,0.01421814,71855.0,71828.0,0.01422499]
[1773572232842,0.01421814,71855.0,71829.0,0.0014]
[1773572233746,0.041753,71839.0,71829.0,0.0014]
[1773572241347,0.01421814,71843.0,71829.0,0.0014]
[1773572241550,0.041754,71838.0,71829.0,0.0014]
[1773572246058,0.041755,71837.0,71829.0,0.0014]
[1773572247156,0.041755,71837.0,71830.0,0.0014]
[1773572247357,0.041755,71837.0,71831.0,0.00029964]
[1773572247750,0.041755,71836.0,71831.0,0.00029964]
[1773572247945,0.01570962,71835.0,71821.0,0.01098]
[1773572248150,0.01570962,71835.0,71822.0,0.0014]
[1773572248756,0.01570962,71835.0,71823.0,0.0014]
[1773572249061,0.041757,71833.0,71823.0,0.0014]
[1773572249245,0.041757,71833.0,71824.0,0.0014]
[1773572249652,0.041757,71833.0,71821.0,0.041763]
[1773572249955,0.041757,71833.0,71822.0,0.0014]
[1773572250157,0.041757,71833.0,71821.0,0.041763]
[1773572250359,0.041757,71833.0,71822.0,0.043163]
[1773572250560,0.041757,71833.0,71823.0,0.0014]
[1773572250762,0.041757,71833.0,71824.0,0.0014]
[1773572251264,0.041757,71833.0,71825.0,0.0014]
[1773572251663,0.041757,71833.0,71822.0,0.041763]
[1773572251965,0.041757,71833.0,71823.0,0.0014]
[1773572252355,0.05746562,71835.0,71823.0,0.0014]
[1773572252764,0.05746562,71835.0,71824.0,0.041761]
[1773572257764,0.041756,71835.0,71824.0,0.041761]
[1773572259456,0.041756,71835.0,71823.0,0.0014]
[1773572260469,0.041756,71834.0,71823.0,0.0014]
[1773572261165,0.041756,71834.0,71822.0,0.041763]
[1773572261472,0.041757,71833.0,71823.0,0.0014]
[1773572262262,0.041757,71833.0,71824.0,0.0014]
[1773572262658,0.041757,71833.0,71822.0,0.041763]
[1773572262867,0.041757,71833.0,71823.0,0.0014]
[1773572264169,0.05746662,71833.0,71823.0,0.0014]
[1773572267071,0.01570962,71832.0,71822.0,0.041763]
[1773572267274,0.01570962,71832.0,71824.0,0.0014]
[1773572267469,0.01570962,71832.0,71825.0,0.0014]
[1773572267865,0.01570962,71832.0,71820.0,0.041764]
[1773572268168,0.041757,71833.0,71826.0,0.0014]
[1773572268365,0.041757,71833.0,71821.0,0.041764]
[1773572268567,0.041757,71833.0,71827.0,0.0014]
[1773572269579,0.041758,71832.0,71827.0,0.0014]
[1773572269778,0.041758,71832.0,71819.0,0.041765]
[1773572269978,0.041758,71832.0,71820.0,0.043164]
[1773572270380,0.041759,71830.0,71821.0,0.0014]
[1773572270679,0.041759,71830.0,71822.0,0.0014]
[1773572270874,0.041759,71830.0,71823.0,0.0014]
[1773572271279,0.041759,71830.0,71819.0,0.041765]
[1773572271479,0.041759,71830.0,71820.0,0.0014]
[1773572272381,0.041759,71829.0,71821.0,0.0014]
[1773572272581,0.041759,71829.0,71822.0,0.0014]
[1773572272773,0.041759,71829.0,71823.0,0.0014]
[1773572275484,0.041759,71829.0,71818.0,0.041765]
[1773572275684,0.041759,71829.0,71819.0,0.0014]
[1773572276486,0.041761,71827.0,71819.0,0.00120676]
[1773572276889,0.041761,71827.0,71816.0,0.041766]
[1773572277084,0.041761,71827.0,71817.0,0.0014]
[1773572277285,0.04176,71827.0,71817.0,0.0014]
[1773572277588,0.04176,71827.0,71818.0,0.0014]
[1773572277779,0.04176,71827.0,71819.0,0.0014]
[1773572278289,0.04176,71827.0,71820.0,0.0014]
[1773572278486,0.04176,71827.0,71815.0,0.019667]
[1773572278686,0.04176,71827.0,71816.0,0.0014]
[1773572279081,0.04176,71827.0,71817.0,0.0014]
[1773572279580,0.04176,71827.0,71816.0,0.041766]
[1773572279781,0.04176,71827.0,71817.0,0.0014]
[1773572280186,0.04176,71827.0,71818.0,0.0014]
[1773572280489,0.041763,71823.0,71819.0,0.0014]
[1773572281890,0.041762,71825.0,71819.0,0.0014]
[1773572282593,0.04176,71829.0,71819.0,0.0014]
[1773572283482,0.04176,71828.0,71819.0,0.0014]
[1773572286190,0.04176,71827.0,71819.0,0.0014]
[1773572291100,0.041761,71826.0,71819.0,0.0014]
[1773572291290,0.041762,71825.0,71819.0,0.0014]
[1773572293999,0.04176,71827.0,71819.0,0.0014]
[1773572301400,0.01494893,71833.0,71819.0,0.043164]
[1773572302708,0.041759,71830.0,71819.0,0.043164]
[1773572310509,0.05684272,71830.0,71819.0,0.043164]
[1773572311110,0.041759,71829.0,71819.0,0.0014]
[1773572313712,0.041759,71829.0,71820.0,6.775e-05]
[1773572315111,0.041762,71825.0,71821.0,0.0014]
[1773572315411,0.041762,71825.0,71822.0,0.0014]
[1773572315615,0.041762,71825.0,71823.0,0.0014]
[1773572316011,0.041762,71825.0,71824.0,0.0014]
[1773572320408,0.041762,71825.0,71813.0,0.052748]
[1773572320610,0.041762,71825.0,71814.0,0.0014]
[1773572324821,0.0014,71840.0,71814.0,0.0014]
[1773572325021,0.01508372,71839.0,71814.0,0.0014]
[1773572326022,0.04176,71828.0,71816.0,0.041766]
[1773572329621,0.01508372,71833.0,71816.0,0.041766]
[1773572329622,0.04176,71827.0,71816.0,0.041766]
[1773572334242,0.01508372,71833.0,71816.0,0.041766]
[1773572335941,0.04176,71828.0,71816.0,0.041766]
[1773572337444,0.04176,71827.0,71816.0,0.041766]
[1773572339945,0.04176,71827.0,71817.0,0.0014]
[1773572340747,0.01525328,71830.0,71817.0,0.0014]
[1773572340946,0.0014,71840.0,71818.0,0.00076422]
[1773572340947,0.041762,71825.0,71818.0,0.00076422]
[1773572341246,0.041762,71825.0,71819.0,0.0014]
[1773572343748,0.01525328,71826.0,71814.0,0.041767]
[1773572343950,0.041761,71827.0,71815.0,0.0014]
[1773572344448,0.05701428,71827.0,71816.0,0.0014]
[1773572346244,0.041761,71827.0,71816.0,0.0014]
[1773572346448,0.04176,71828.0,71816.0,0.043166]
[1773572347251,0.04176,71828.0,71816.0,0.05803753]
[1773572348257,0.04176,71828.0,71817.0,0.041766]
[1773572350351,0.041759,71830.0,71817.0,0.041766]
[1773572350949,0.041758,71831.0,71816.0,0.01627153]
[1773572351543,0.041758,71831.0,71819.0,0.041765]
[1773572358056,0.041758,71831.0,71819.0,0.05663653]
[1773572366564,0.041758,71831.0,71819.0,0.041765]
[1773572368670,0.041759,71830.0,71819.0,0.041765]
[1773572373268,0.041759,71830.0,71818.0,0.041765]
[1773572375364,0.041759,71829.0,71818.0,0.041765]
[1773572376072,0.041759,71829.0,71816.0,0.06906639]
[1773572376261,0.041759,71829.0,71816.0,0.043166]
[1773572377567,0.04176,71827.0,71816.0,0.041766]
[1773572377766,0.0014,71840.0,71817.0,0.0014]
[1773572377767,0.01454643,71839.0,71817.0,0.0014]
[1773572377972,0.01454643,71839.0,71818.0,0.0014]
[1773572378272,0.01454643,71839.0,71819.0,0.0014]
[1773572378472,0.01454643,71839.0,71820.0,0.0014]
[1773572378663,0.01454643,71839.0,71821.0,0.0014]
[1773572379058,0.041762,71825.0,71821.0,0.0014]
[1773572380370,0.041762,71825.0,71822.0,0.0014]
[1773572380571,0.041762,71825.0,71823.0,0.0014]
[1773572381774,0.041762,71825.0,71822.0,0.0014]
[1773572382974,0.041762,71824.0,71822.0,0.0014]
[1773572384672,0.041762,71824.0,71812.0,0.041769]
[1773572384869,0.041762,71824.0,71819.0,0.0028009]
[1773572385068,0.041762,71824.0,71820.0,0.0014]
[1773572386172,0.041764,71822.0,71819.0,0.0014]
[1773572387182,0.041764,71822.0,71820.0,0.0014]
[1773572387364,0.041764,71822.0,71821.0,0.0014]
[1773572387570,0.01454643,71829.0,71821.0,0.0014]
[1773572387980,0.041764,71822.0,71821.0,0.0014]
[1773572388680,0.02466436,71822.0,71821.0,0.0014]
[1773572397382,0.02466436,71822.0,71811.0,0.041769]
[1773572397580,0.02466436,71822.0,71819.0,0.0028009]
[1773572397775,0.02466436,71822.0,71811.0,0.041769]
[1773572398080,0.02466436,71822.0,71812.0,0.0014]
[1773572399385,0.02466436,71822.0,71819.0,0.0017937]
[1773572399582,0.02466436,71822.0,71820.0,0.0014]
[1773572399782,0.02466436,71822.0,71821.0,0.0014]
[1773572400686,0.02466436,71822.0,71821.0,0.0031937]
[1773572400987,0.02466436,71822.0,71821.0,7e-07]
[1773572401785,0.041762,71824.0,71821.0,7e-07]
[1773572402987,0.01534852,71823.0,71821.0,7e-07]
[1773572403388,0.01534852,71823.0,71820.0,0.0014]
[1773572403779,0.01534852,71823.0,71819.0,0.0014]
[1773572403975,0.01534852,71823.0,71811.0,0.041769]
[1773572404187,0.041763,71823.0,71812.0,0.0014]
[1773572410395,0.01534852,71822.0,71813.0,0.0014]
[1773572411590,0.01534852,71822.0,71811.0,0.041769]
[1773572411895,0.01534852,71822.0,71812.0,0.0014]
[1773572412499,0.05711152,71822.0,71812.0,0.0014]
[1773572412988,0.05711152,71822.0,71809.0,0.04177]
[1773572413190,0.05711152,71822.0,71813.0,0.0014]
[1773572415496,0.041763,71822.0,71813.0,0.0014]
[1773572416700,0.041762,71824.0,71813.0,0.01694256]
[1773572418394,0.041763,71823.0,71813.0,0.01694256]
[1773572418806,0.041763,71822.0,71813.0,0.0014]
[1773572422006,0.01534852,71828.0,71813.0,0.0014]
[1773572429615,0.01534852,71828.0,71804.0,0.02637369]
[1773572429912,0.01534852,71828.0,71805.0,0.0014]
[1773572430716,0.01534852,71828.0,71806.0,0.01539369]
[1773572434816,0.01534852,71828.0,71805.0,0.0014]
[1773572439612,0.01517143,71833.0,71807.0,0.01539369]
[1773572441818,0.01517143,71831.0,71807.0,0.01539369]
[1773572442015,0.19257457,71830.0,71807.0,0.01539369]
[1773572442319,0.19257457,71829.0,71807.0,0.01539369]
[1773572442521,0.19257457,71828.0,71807.0,0.01539369]
[1773572442719,0.19257457,71827.0,71807.0,0.01539369]
[1773572442908,0.19257457,71826.0,71807.0,0.01539369]
[1773572443111,0.19257457,71825.0,71807.0,0.01539369]
[1773572443314,0.19257457,71824.0,71807.0,0.01539369]
[1773572443514,0.19257457,71823.0,71807.0,0.01539369]
[1773572443715,0.19257457,71822.0,71807.0,0.01539369]
[1773572443918,0.19257457,71821.0,71807.0,0.01539369]
[1773572444121,0.19257457,71820.0,71807.0,0.01539369]
[1773572444318,0.01517143,71831.0,71807.0,0.01539369]
[1773572444507,0.01517143,71829.0,71807.0,0.01539369]
[1773572444713,0.19254885,71828.0,71807.0,0.01539369]
[1773572444914,0.19254885,71827.0,71807.0,0.01539369]
[1773572445219,0.19254885,71826.0,71807.0,0.01539369]
[1773572445520,0.19254885,71825.0,71808.0,0.02590039]
[1773572445720,0.19254885,71824.0,71808.0,0.02590039]
[1773572445921,0.19254885,71823.0,71808.0,0.02590039]
[1773572446122,0.19254885,71822.0,71808.0,0.02590039]
[1773572446424,0.19254885,71821.0,71808.0,0.02590039]
[1773572446625,0.01517143,71828.0,71808.0,0.02590039]
[1773572446626,0.19254885,71820.0,71808.0,0.02590039]
[1773572446824,0.01517143,71828.0,71808.0,0.02590039]
[1773572447124,0.19254596,71827.0,71808.0,0.02590039]
[1773572447322,0.19254596,71826.0,71808.0,0.02590039]
[1773572447624,0.19254596,71825.0,71807.0,0.01539369]
[1773572447825,0.19254596,71824.0,71807.0,0.01539369]
[1773572448121,0.19254596,71823.0,71807.0,0.01539369]
[1773572448322,0.19254596,71822.0,71807.0,0.01539369]
[1773572448524,0.19254596,71821.0,71807.0,0.01539369]
[1773572448726,0.19254596,71820.0,71807.0,0.01539369]
[1773572448917,0.19254596,71819.0,71807.0,0.01539369]
[1773572449119,0.19254596,71818.0,71807.0,0.01539369]
[1773572449313,0.01517143,71828.0,71806.0,0.0014]
[1773572449524,0.01517143,71825.0,71806.0,0.0014]
[1773572449725,0.19253336,71824.0,71806.0,0.0014]
[1773572449925,0.19253336,71823.0,71806.0,0.0014]
[1773572450125,0.19253336,71822.0,71806.0,0.0014]
[1773572450329,0.19253336,71821.0,71806.0,0.0014]
[1773572450527,0.19253336,71820.0,71806.0,0.0014]
[1773572450826,0.19253336,71819.0,71806.0,0.0014]
[1773572451020,0.19253336,71818.0,71806.0,0.0014]
[1773572451220,0.19253336,71817.0,71806.0,0.0014]
[1773572451421,0.19253336,71816.0,71806.0,0.0014]
[1773572451622,0.01517143,71825.0,71806.0,0.0014]
[1773572451823,0.19253281,71824.0,71806.0,0.0014]
[1773572452020,0.19253281,71823.0,71806.0,0.0014]
[1773572452221,0.19253281,71822.0,71806.0,0.0014]
[1773572452420,0.19253281,71821.0,71806.0,0.0014]
[1773572452621,0.19253281,71820.0,71806.0,0.0014]
[1773572452824,0.19253281,71819.0,71806.0,0.0014]
[1773572453026,0.19253281,71818.0,71806.0,0.0014]
[1773572453326,0.19253281,71817.0,71806.0,0.0014]
[1773572453527,0.19253281,71816.0,71806.0,0.0014]
[1773572453728,0.01517143,71825.0,71806.0,0.0014]
[1773572453928,0.19253262,71824.0,71806.0,0.0014]
[1773572454132,0.19253262,71823.0,71806.0,0.0014]
[1773572454330,0.19253262,71822.0,71806.0,0.0014]
[1773572454523,0.19253262,71821.0,71806.0,0.0014]
[1773572454717,0.19253262,71820.0,71806.0,0.0014]
[1773572454916,0.19253262,71819.0,71806.0,0.0014]
[1773572455124,0.19253262,71818.0,71806.0,0.0014]
[1773572455324,0.19253262,71817.0,71806.0,0.0014]
[1773572455525,0.19253262,71816.0,71806.0,0.0014]
[1773572455727,0.01517143,71825.0,71806.0,0.0014]
[1773572456026,0.19253511,71824.0,71806.0,0.0014]
[1773572456223,0.19253511,71823.0,71806.0,0.0014]
[1773572456418,0.19253511,71822.0,71806.0,0.0014]
[1773572456624,0.19253511,71821.0,71806.0,0.0014]
[1773572456835,0.19253511,71820.0,71806.0,0.0014]
[1773572457036,0.19253511,71819.0,71806.0,0.0014]
[1773572457238,0.19253511,71818.0,71806.0,0.0014]
[1773572457537,0.19253511,71817.0,71806.0,0.0014]
[1773572457728,0.19253511,71816.0,71806.0,0.0014]
[1773572457929,0.01428929,71823.0,71806.0,0.0014]
[1773572458134,0.19253808,71822.0,71806.0,0.0014]
[1773572458335,0.19253808,71821.0,71806.0,0.0014]
[1773572458640,0.01428929,71823.0,71806.0,0.0014]
[1773572458824,0.19253983,71822.0,71806.0,0.0014]
[1773572459027,0.19253983,71821.0,71806.0,0.0014]
[1773572459230,0.19253983,71820.0,71806.0,0.0014]
[1773572459531,0.01428929,71823.0,71806.0,0.0014]
[1773572459841,0.0014,71834.0,71806.0,0.0014]
[1773572459842,0.01428929,71821.0,71806.0,0.0014]
[1773572460031,0.1925416,71820.0,71806.0,0.0014]
[1773572460342,0.1925416,71819.0,71806.0,0.0014]